fUSD/lending_fUSD_20241215
["ID","MTS","AMOUNT","RATE_DAILY","PERIOD"]
[345419822,1734249180297,-501.94624372,0.00013996,2]
[345419823,1734249180307,-500.0,0.00013996,2]
[345419824,1734249180316,-502.47515318,0.00013996,2]
[345419825,1734249180326,-500.0,0.00013996,2]
[345419826,1734249180335,-500.0,0.00013996,2]
[345419827,1734249180345,-508.58129254,0.00013996,2]
[345419828,1734249180354,-500.0,0.00013996,2]
[345419829,1734249180363,-500.0,0.00013996,2]
[345419830,1734249180373,-500.0,0.00013996,2]
[345419831,1734249180383,-500.0,0.00013996,2]
[345419832,1734249180393,-505.58060698,0.00013996,2]
[345419833,1734249180402,-500.0,0.00013996,2]
[345419834,1734249180411,-500.0,0.00013996,2]
[345419835,1734249180421,-506.73877702,0.00013996,2]
[345419836,1734249180430,-500.0,0.00013996,2]
[345419837,1734249180440,-500.0,0.00013996,2]
[345419838,1734249180449,-500.0,0.00013996,2]
[345419839,1734249180459,-500.0,0.00013996,2]
[345419840,1734249180468,-500.0,0.00013996,2]
[345419841,1734249180478,-500.0,0.00013996,2]
[345419842,1734249180487,-500.0,0.00013996,2]
[345419843,1734249180496,-500.0,0.00013996,2]
[345419844,1734249180507,-300.32,0.00013996,2]
[345419845,1734249180516,-500.0,0.00013996,2]
[345419846,1734249180526,-500.0,0.00013996,2]
[345419847,1734249180536,-500.0,0.00013996,2]
[345419848,1734249180547,-503.77923284,0.00013996,2]
[345419849,1734249180557,-596.18957061,0.00013996,2]
[345419850,1734249180567,-514.22399038,0.00013996,2]
[345419851,1734249180577,-500.0,0.00013996,2]
[345419852,1734249180586,-500.0,0.00013996,2]
[345419853,1734249180596,-500.0,0.00013996,2]
[345419854,1734249180605,-502.20491314,0.00013996,2]
[345419855,1734249180615,-500.0,0.00013996,2]
[345419856,1734249180624,-500.0,0.00013996,2]
[345419857,1734249180634,-500.0,0.00013996,2]
[345419858,1734249180643,-509.52764049,0.00013996,2]
[345419859,1734249180652,-500.0,0.00013996,2]
[345419860,1734249180662,-500.0,0.00013996,2]
[345419861,1734249180672,-500.0,0.00013996,2]
[345419862,1734249180682,-500.0,0.00013996,2]
[345419863,1734249180691,-500.0,0.00013996,2]
[345419864,1734249180701,-500.0,0.00013996,2]
[345419865,1734249180711,-598.15,0.00013996,2]
[345419866,1734249180720,-500.0,0.00013996,2]
[345419867,1734249180730,-500.0,0.00013996,2]
[345419868,1734249180740,-500.0,0.00013996,2]
[345419869,1734249180750,-502.01445802,0.00013996,2]
[345419870,1734249180760,-500.0,0.00013996,2]
[345419871,1734249180770,-500.0,0.00013996,2]
[345419872,1734249180780,-506.00238711,0.00013996,2]
[345419873,1734249180789,-500.0,0.00013996,2]
[345419874,1734249180799,-500.0,0.00013996,2]
[345419875,1734249180809,-500.0,0.00013996,2]
[345419876,1734249180819,-500.0,0.00013996,2]
[345419877,1734249180829,-493.84635033,0.00013996,2]
[345419878,1734249180839,-500.0,0.00013996,2]
[345419879,1734249180849,-500.0,0.00013996,2]
[345419880,1734249180858,-500.0,0.00013996,2]
[345419881,1734249180868,-502.95115987,0.00013996,2]
[345419882,1734249180878,-500.0,0.00013996,2]
[345419883,1734249180888,-500.0,0.00013996,2]
[345419884,1734249180897,-500.0,0.00013996,2]
[345419885,1734249180907,-500.0,0.00013996,2]
[345419886,1734249180916,-500.0,0.00013996,2]
[345419887,1734249180925,-521.67313727,0.00013996,2]
[345419888,1734249180937,-500.0,0.00013996,2]
[345419889,1734249180947,-500.0,0.00013996,2]
[345419890,1734249180962,-503.96775496,0.00013996,2]
[345419891,1734249180972,-500.0,0.00013996,2]
[345419892,1734249180981,-500.0,0.00013996,2]
[345419893,1734249180991,-503.32432207,0.00013996,2]
[345419894,1734249181002,-500.0,0.00013996,2]
[345419895,1734249181013,-500.0,0.00013996,2]
[345419896,1734249181022,-501.62426578,0.00013996,2]
[345419897,1734249181034,-500.0,0.00013996,2]
[345419898,1734249181045,-500.0,0.00013996,2]
[345419899,1734249181055,-500.0,0.00013996,2]
[345419900,1734249181065,-503.70346334,0.00013996,2]
[345419901,1734249181075,-500.0,0.00013996,2]
[345419902,1734249181085,-500.0,0.00013996,2]
[345419903,1734249181095,-500.0,0.00013996,2]
[345419904,1734249181107,-449.85,0.00013996,2]
[345419905,1734249181117,-500.0,0.00013996,2]
[345419906,1734249181127,-500.0,0.00013996,2]
[345419907,1734249181138,-500.0,0.00013996,2]
[345419908,1734249181149,-500.0,0.00013996,2]
[345419909,1734249181160,-500.0,0.00013996,2]
[345419910,1734249181169,-500.0,0.00013996,2]
[345419911,1734249181179,-500.0,0.00013996,2]
[345419912,1734249181189,-500.0,0.00013996,2]
[345419913,1734249181199,-500.0,0.00013996,2]
[345419914,1734249181208,-500.0,0.00013996,2]
[345419915,1734249181218,-613.85,0.00013996,2]
[345419916,1734249181228,-500.0,0.00013996,2]
[345419917,1734249181238,-500.0,0.00013996,2]
[345419918,1734249181247,-500.0,0.00013996,2]
[345419919,1734249181259,-407.34479935,0.00013996,2]
[345419920,1734249181268,-500.0,0.00013996,2]
[345419921,1734249181278,-500.0,0.00013996,2]
[345419922,1734249181287,-500.0,0.00013996,2]
[345419923,1734249181297,-390.39,0.00013996,2]
[345419924,1734249181307,-500.0,0.00013996,2]
[345419925,1734249181316,-500.0,0.00013996,2]
[345419926,1734249181325,-500.0,0.00013996,2]
[345419927,1734249181334,-500.0,0.00013996,2]
[345419928,1734249181344,-501.22814399,0.00013996,2]
[345419929,1734249181355,-500.0,0.00013996,2]
[345419930,1734249181365,-500.0,0.00013996,2]
[345419931,1734249181375,-500.0,0.00013996,2]
[345419932,1734249181384,-507.14775094,0.00013996,2]
[345419933,1734249181395,-500.0,0.00013996,2]
[345419934,1734249181405,-500.0,0.00013996,2]
[345419935,1734249181415,-500.0,0.00013996,2]
[345419936,1734249181426,-314.52,0.00013996,2]
[345419937,1734249181436,-500.0,0.00013996,2]
[345419938,1734249181445,-500.0,0.00013996,2]
[345419939,1734249181455,-503.05938212,0.00013996,2]
[345419940,1734249181466,-500.0,0.00013996,2]
[345419941,1734249181476,-500.0,0.00013996,2]
[345419942,1734249181485,-501.65150121,0.00013996,2]
[345419943,1734249181496,-500.0,0.00013996,2]
[345419944,1734249181505,-355.18981181,0.00013996,2]
[345419945,1734249181516,-500.0,0.00013996,2]
[345419946,1734249181526,-502.69398843,0.00013996,2]
[345419947,1734249181536,-500.0,0.00013996,2]
[345419948,1734249181546,-500.0,0.00013996,2]
[345419949,1734249181555,-500.0,0.00013996,2]
[345419950,1734249181566,-500.0,0.00013996,2]
[345419951,1734249181575,-500.0,0.00013996,2]
[345419952,1734249181585,-500.0,0.00013996,2]
[345419953,1734249181596,-500.0,0.00013996,2]
[345419954,1734249181607,-500.0,0.00013996,2]
[345419955,1734249181617,-500.0,0.00013996,2]
[345419956,1734249181627,-500.0,0.00013996,2]
[345419957,1734249181638,-500.0,0.00013996,2]
[345419958,1734249181649,-500.0,0.00013996,2]
[345419959,1734249181659,-500.0,0.00013996,2]
[345419960,1734249181670,-501.20903274,0.00013996,2]
[345419961,1734249181680,-592.49041429,0.00013996,2]
[345419962,1734249181690,-500.0,0.00013996,2]
[345419963,1734249181700,-500.0,0.00013996,2]
[345419964,1734249181710,-500.0,0.00013996,2]
[345419965,1734249181720,-500.0,0.00013996,2]
[345419966,1734249181730,-500.0,0.00013996,2]
[345419967,1734249181740,-500.0,0.00013996,2]
[345419968,1734249181750,-500.0,0.00013996,2]
[345419969,1734249181762,-417.29033383,0.00013996,2]
[345419970,1734249181772,-500.0,0.00013996,2]
[345419971,1734249181782,-500.0,0.00013996,2]
[345419972,1734249181792,-150.0,0.00013996,2]
[345419973,1734249181802,-500.0,0.00013996,2]
[345419974,1734249181812,-150.0,0.00013996,2]
[345419975,1734249181822,-500.0,0.00013996,2]
[345419976,1734249181832,-150.0,0.00013996,2]
[345419977,1734249181842,-150.0,0.00013996,2]
[345419978,1734249181851,-500.0,0.00013996,2]
[345419979,1734249181861,-500.0,0.00013996,2]
[345419980,1734249181871,-500.0,0.00013996,2]
[345419981,1734249181880,-500.0,0.00013996,2]
[345419982,1734249181890,-500.0,0.00013996,2]
[345419983,1734249181899,-502.65162441,0.00013996,2]
[345419984,1734249181909,-503.44666767,0.00013996,2]
[345419985,1734249181919,-500.0,0.00013996,2]
[345419986,1734249181929,-500.0,0.00013996,2]
[345419987,1734249181938,-500.0,0.00013996,2]
[345419988,1734249181948,-500.0,0.00013996,2]
[345419989,1734249181963,-500.0,0.00013996,2]
[345419990,1734249181972,-500.0,0.00013996,2]
[345419991,1734249181981,-294.67621815,0.00013996,2]
[345419992,1734249181991,-500.0,0.00013996,2]
[345419993,1734249182000,-500.0,0.00013996,2]
[345419994,1734249182010,-500.0,0.00013996,2]
[345419995,1734249182019,-500.0,0.00013996,2]
[345419996,1734249182031,-500.0,0.00013996,2]
[345419997,1734249182041,-500.0,0.00013996,2]
[345419998,1734249182050,-500.0,0.00013996,2]
[345419999,1734249182059,-500.0,0.00013996,2]
[345420000,1734249182069,-326.31410981,0.00013996,2]
[345420001,1734249182079,-500.0,0.00013996,2]
[345420002,1734249182088,-504.18740701,0.00013996,2]
[345420003,1734249182096,-500.0,0.00013996,2]
[345420004,1734249182106,-500.0,0.00013996,2]
[345420005,1734249182115,-500.0,0.00013996,2]
[345420006,1734249182124,-500.0,0.00013996,2]
[345420007,1734249182134,-500.0,0.00013996,2]
[345420008,1734249182143,-500.0,0.00013996,2]
[345420009,1734249182152,-500.0,0.00013996,2]
[345420010,1734249182161,-500.0,0.00013996,2]
[345420011,1734249182170,-500.0,0.00013996,2]
[345420012,1734249182179,-500.0,0.00013996,2]
[345420013,1734249182188,-500.0,0.00013996,2]
[345420014,1734249182198,-599.08,0.00013996,2]
[345420015,1734249182207,-500.0,0.00013996,2]
[345420016,1734249182217,-500.0,0.00013996,2]
[345420017,1734249182227,-500.0,0.00013996,2]
[345420018,1734249182236,-500.0,0.00013996,2]
[345420019,1734249182246,-500.0,0.00013996,2]
[345420020,1734249182255,-500.0,0.00013996,2]
[345420021,1734249182266,-503.45196941,0.00013996,2]
[345420022,1734249182276,-500.0,0.00013996,2]
[345420023,1734249182285,-500.0,0.00013996,2]
[345420024,1734249182295,-501.88171531,0.00013996,2]
[345420025,1734249182402,-500.0,0.00013996,2]
[345420026,1734249182412,-500.0,0.00013996,2]
[345420027,1734249182421,-502.10520851,0.00013996,2]
[345420028,1734249182430,-500.0,0.00013996,2]
[345420029,1734249182439,-501.62497739,0.00013996,2]
[345420030,1734249182448,-500.0,0.00013996,2]
[345420031,1734249182458,-500.0,0.00013996,2]
[345420032,1734249182467,-500.0,0.00013996,2]
[345420033,1734249182477,-500.0,0.00013996,2]
[345420034,1734249182486,-500.0,0.00013996,2]
[345420035,1734249182496,-500.0,0.00013996,2]
[345420036,1734249182505,-500.0,0.00013996,2]
[345420037,1734249182515,-500.0,0.00013996,2]
[345420038,1734249182525,-500.0,0.00013996,2]
[345420039,1734249182534,-500.0,0.00013996,2]
[345420040,1734249182543,-500.0,0.00013996,2]
[345420041,1734249182552,-500.0,0.00013996,2]
[345420042,1734249182561,-500.0,0.00013996,2]
[345420043,1734249182571,-167.77399231,0.00013996,2]
[345420044,1734249182580,-500.0,0.00013996,2]
[345420045,1734249182589,-500.0,0.00013996,2]
[345420046,1734249182599,-500.0,0.00013996,2]
[345420047,1734249182608,-395.78831728,0.00013996,2]
[345420048,1734249182618,-500.0,0.00013996,2]
[345420049,1734249182628,-500.0,0.00013996,2]
[345420050,1734249182637,-500.0,0.00013996,2]
[345420051,1734249182647,-500.0,0.00013996,2]
[345420052,1734249182656,-500.0,0.00013996,2]
[345420053,1734249182666,-504.61405868,0.00013996,2]
[345420054,1734249182675,-500.0,0.00013996,2]
[345420055,1734249182684,-500.0,0.00013996,2]
[345420056,1734249182693,-563.61778218,0.00013996,2]
[345420057,1734249182703,-500.0,0.00013996,2]
[345420058,1734249182713,-503.12788647,0.00013996,2]
[345420059,1734249182722,-500.0,0.00013996,2]
[345420060,1734249182731,-500.0,0.00013996,2]
[345420061,1734249182741,-500.0,0.00013996,2]
[345420062,1734249182750,-280.1122734,0.00013996,2]
[345420063,1734249182760,-500.0,0.00013996,2]
[345420064,1734249182769,-502.70689929,0.00013996,2]
[345420065,1734249182778,-500.0,0.00013996,2]
[345420066,1734249182786,-500.0,0.00013996,2]
[345420067,1734249182796,-500.0,0.00013996,2]
[345420068,1734249182805,-582.53,0.00013996,2]
[345420069,1734249182814,-500.0,0.00013996,2]
[345420070,1734249182823,-500.0,0.00013996,2]
[345420071,1734249182833,-500.0,0.00013996,2]
[345420072,1734249182842,-500.0,0.00013996,2]
[345420073,1734249182852,-500.0,0.00013996,2]
[345420074,1734249182861,-500.0,0.00013996,2]
[345420075,1734249182871,-189.02789007,0.00013996,2]
[345420076,1734249182880,-500.0,0.00013996,2]
[345420077,1734249182889,-500.0,0.00013996,2]
[345420078,1734249182899,-500.0,0.00013996,2]
[345420079,1734249182909,-500.0,0.00013996,2]
[345420080,1734249182918,-500.0,0.00013996,2]
[345420081,1734249182928,-500.0,0.00013996,2]
[345420082,1734249182937,-504.13997538,0.00013996,2]
[345420083,1734249182947,-500.0,0.00013996,2]
[345420084,1734249182960,-588.13,0.00013996,2]
[345420085,1734249182970,-500.0,0.00013996,2]
[345420086,1734249182980,-500.0,0.00013996,2]
[345420087,1734249182989,-505.94734259,0.00013996,2]
[345420088,1734249183001,-500.0,0.00013996,2]
[345420089,1734249183012,-500.0,0.00013996,2]
[345420090,1734249183021,-500.0,0.00013996,2]
[345420091,1734249183032,-500.0,0.00013996,2]
[345420092,1734249183042,-934.68619704,0.00013996,2]
[345420093,1734249183051,-489.08079945,0.00013996,2]
[345420094,1734249183061,-318.27558292,0.00013997,2]
[345420095,1734249183070,-500.0,0.00013997,2]
[345420096,1734249183079,-548.32,0.00013997,2]
[345420097,1734249183089,-205.08,0.00013997,2]
[345420098,1734249183098,-500.0,0.00013997,2]
[345420099,1734249183107,-500.0,0.00013997,2]
[345420100,1734249183117,-500.0,0.00013997,2]
[345420101,1734249183126,-500.0,0.00013997,2]
[345420102,1734249183135,-862.22108829,0.00013997,2]
[345420103,1734249183146,-389.66037642,0.00013997,2]
[345420104,1734249183155,-500.0,0.00013997,2]
[345420105,1734249183165,-500.0,0.00013997,2]
[345420106,1734249183175,-370.66,0.00013997,2]
[345420107,1734249183184,-500.0,0.00013997,2]
[345420108,1734249183193,-500.0,0.00013997,2]
[345420109,1734249183203,-286.77,0.00013997,2]
[345420110,1734249183212,-500.0,0.00013997,2]
[345420111,1734249183221,-500.0,0.00013997,2]
[345420112,1734249183231,-500.0,0.00013997,2]
[345420113,1734249183240,-500.0,0.00013997,2]
[345420114,1734249183249,-500.0,0.00013997,2]
[345420115,1734249183259,-601.84735963,0.00013997,2]
[345420116,1734249183269,-500.0,0.00013997,2]
[345420117,1734249183278,-500.0,0.00013997,2]
[345420118,1734249183287,-500.0,0.00013997,2]
[345420119,1734249183297,-320.64,0.00013997,2]
[345420120,1734249183306,-500.0,0.00013997,2]
[345420121,1734249183315,-500.0,0.00013997,2]
[345420122,1734249183325,-500.0,0.00013997,2]
[345420123,1734249183334,-525.12,0.00013997,2]
[345420124,1734249183344,-500.0,0.00013997,2]
[345420125,1734249183353,-500.0,0.00013997,2]
[345420126,1734249183362,-500.0,0.00013997,2]
[345420127,1734249183372,-500.0,0.00013997,2]
[345420128,1734249183381,-500.0,0.00013997,2]
[345420129,1734249183391,-500.0,0.00013997,2]
[345420130,1734249183401,-500.0,0.00013997,2]
[345420131,1734249183410,-500.0,0.00013997,2]
[345420132,1734249183420,-215.63898516,0.00013997,2]
[345420133,1734249183431,-500.0,0.00013997,2]
[345420134,1734249183440,-500.0,0.00013997,2]
[345420135,1734249183450,-500.0,0.00013997,2]
[345420136,1734249183460,-500.0,0.00013997,2]
[345420137,1734249183469,-215.98306544,0.00013998,2]
[345420138,1734249183479,-500.0,0.00013998,2]
[345420139,1734249183488,-282.92,0.00013998,2]
[345420140,1734249183499,-205.76,0.00013998,2]
[345420141,1734249183510,-386.19,0.00013998,2]
[345420142,1734249183520,-500.0,0.00013998,2]
[345420143,1734249183529,-500.0,0.00013998,2]
[345420144,1734249183539,-500.0,0.00013998,2]
[345420145,1734249183548,-500.0,0.00013998,2]
[345420146,1734249183558,-500.0,0.00013998,2]
[345420147,1734249183568,-500.0,0.00013998,2]
[345420148,1734249183578,-500.0,0.00013998,2]
[345420149,1734249183588,-500.0,0.00013998,2]
[345420150,1734249183598,-500.0,0.00013998,2]
[345420151,1734249183608,-500.0,0.00013998,2]
[345420152,1734249183618,-364.74,0.00013998,2]
[345420153,1734249183628,-774.7252445,0.00013998,2]
[345420154,1734249183637,-1004.37,0.00013998,2]
[345420155,1734249183647,-215.98306544,0.00013998,2]
[345420156,1734249183657,-150.0,0.00013999,2]
[345420157,1734249183667,-150.0,0.00013999,2]
[345420158,1734249183677,-150.0,0.00013999,2]
[345420159,1734249183686,-150.0,0.00013999,2]
[345420160,1734249183696,-150.0,0.00013999,2]
[345420161,1734249183706,-150.0,0.00013999,2]
[345420162,1734249183715,-209.94801044,0.00013999,2]
[345420163,1734249183725,-318.27558292,0.00013999,2]
[345420164,1734249183735,-264.71661844,0.00013999,2]
[345420165,1734249183745,-150.0,0.00013999,2]
[345420166,1734249183755,-500.0,0.00013999,2]
[345420167,1734249183767,-150.0,0.00013999,2]
[345420168,1734249183777,-150.0,0.00013999,2]
[345420169,1734249183787,-2811.0,0.00013999,2]
[345420170,1734249183797,-1484.0,0.00013999,2]
[345420171,1734249183806,-200.0,0.00013999,2]
[345420172,1734249183816,-269.97689163,0.00014,2]
[345420173,1734249183826,-500.0,0.00014,2]
[345420174,1734249183836,-500.0,0.00014,2]
[345420175,1734249183846,-500.0,0.00014,2]
[345420176,1734249183856,-20450.42,0.00014,2]
[345420177,1734249183865,-2006.35057125,0.00014,2]
[345420178,1734249183875,-250.0,0.00014,2]
[345420179,1734249183885,-250.0,0.00014,2]
[345420180,1734249183895,-250.0,0.00014,2]
[345420181,1734249183904,-250.0,0.00014,2]
[345420182,1734249183914,-250.0,0.00014,2]
[345420183,1734249183924,-250.0,0.00014,2]
[345420184,1734249183933,-250.0,0.00014,2]
[345420185,1734249183943,-250.0,0.00014,2]
[345420186,1734249183954,-250.0,0.00014,2]
[345420187,1734249183965,-250.0,0.00014,2]
[345420188,1734249183974,-250.0,0.00014,2]
[345420189,1734249183984,-250.0,0.00014,2]
[345420190,1734249183995,-250.0,0.00014,2]
[345420191,1734249184004,-250.0,0.00014,2]
[345420192,1734249184015,-250.0,0.00014,2]
[345420193,1734249184024,-250.0,0.00014,2]
[345420194,1734249184036,-250.0,0.00014,2]
[345420195,1734249184046,-250.0,0.00014,2]
[345420196,1734249184056,-250.0,0.00014,2]
[345420197,1734249184065,-250.0,0.00014,2]
[345420198,1734249184075,-250.0,0.00014,2]
[345420199,1734249184084,-250.0,0.00014,2]
[345420200,1734249184093,-250.0,0.00014,2]
[345420201,1734249184103,-250.0,0.00014,2]
[345420202,1734249184112,-250.0,0.00014,2]
[345420203,1734249184123,-250.0,0.00014,2]
[345420204,1734249184132,-250.0,0.00014,2]
[345420205,1734249184142,-250.0,0.00014,2]
[345420206,1734249184152,-250.0,0.00014,2]
[345420207,1734249184162,-250.0,0.00014,2]
[345420208,1734249184172,-250.0,0.00014,2]
[345420209,1734249184182,-250.0,0.00014,2]
[345420210,1734249184191,-250.0,0.00014,2]
[345420211,1734249184201,-250.0,0.00014,2]
[345420212,1734249184211,-250.0,0.00014,2]
[345420213,1734249184221,-250.0,0.00014,2]
[345420214,1734249184231,-250.0,0.00014,2]
[345420215,1734249184241,-250.0,0.00014,2]
[345420216,1734249184251,-250.0,0.00014,2]
[345420217,1734249184261,-449.0,0.00014,2]
[345420218,1734249184271,-1000.0,0.00014,2]
[345420219,1734249184280,-1508.55406325,0.00014,2]
[345420220,1734249184290,-20513.0,0.00014,2]
[345420221,1734249184300,-50000.0,0.00014,2]
[345420222,1734249184311,-2151.0730201,0.00014001,2]
[345420223,1734249184321,-970.0853694,0.00014008,2]
[345420224,1734249184332,-6407.9627927,0.00014008,2]
[345420225,1734249184342,-674.67,0.00014017,2]
[345420226,1734249184351,-1000.0,0.00014018,2]
[345420227,1734249184362,-4122.4915754,0.00014021,2]
[345420228,1734249184372,-275.0791497,0.00014103,2]
[345420229,1734249184382,-596.88776867,0.00014247,2]
[345420230,1734249184392,-1070.01726866,0.00014247,2]
[345420231,1734249184402,-1000.0,0.00014247,2]
[345420232,1734249184412,-1000.0,0.00014247,2]
[345420233,1734249184421,-1000.0,0.00014247,2]
[345420234,1734249184432,-150.0,0.00014273,2]
[345420235,1734249184442,-500.0,0.00014273,2]
[345420236,1734249184451,-150.0,0.00014273,2]
[345420237,1734249184461,-2811.0,0.00014273,2]
[345420238,1734249184470,-1484.0,0.00014273,2]
[345420239,1734249184480,-500.0,0.0001428,2]
[345420240,1734249184489,-1700.0,0.0001428,2]
[345420241,1734249184499,-4600.0,0.0001428,2]
[345420242,1734249184509,-875.54,0.00014327,2]
[345420243,1734249184519,-9823.82269273,0.0001439,2]
[345420244,1734249184528,-150.11,0.00014534,2]
[345420245,1734249184537,-1056.0,0.00014537,2]
[345420246,1734249184547,-150.0,0.00014547,2]
[345420247,1734249184557,-500.0,0.00014547,2]
[345420248,1734249184566,-211.00245891,0.00014547,2]
[345420249,1734249184575,-2811.0,0.00014547,2]
[345420250,1734249184585,-1484.0,0.00014547,2]
[345420251,1734249184595,-1267.71909512,0.00014622,2]
[345420252,1734249184604,-192.90371244,0.00014821,2]
[345420253,1734249184613,-829.26144677,0.00014821,2]
[345420254,1734249184622,-2811.0,0.00014821,2]
[345420255,1734249184632,-1484.0,0.00014821,2]
[345420256,1734249184643,-20000.0,0.000149,3]
[345420257,1734249184652,-500.0,0.00015,2]
[345420258,1734249184662,-33037.14297191,0.00015,2]
[345420259,1734249184672,-14850.84154474,0.00015,2]
[345420260,1734249184682,-961.61,0.00015,2]
[345420261,1734249184692,-34824.52486221,0.00015,2]
[345420262,1734249184702,-1951.02951069,0.00015,2]
[345420263,1734249184711,-67779.65514369,0.00015,2]
[345420264,1734249184721,-7499.0,0.00015,2]
[345420265,1734249184731,-500.0,0.00015,2]
[345420266,1734249184740,-173.0,0.00015036,2]
[345420267,1734249184749,-152.0,0.00015041,3]
[345420268,1734249184761,-300.0,0.00015068,2]
[345420269,1734249184778,-500.0,0.00015068,2]
[345420270,1734249184789,-2811.0,0.00015095,2]
[345420271,1734249184799,-1484.0,0.00015095,2]
[345420272,1734249184809,-1500.0,0.00015248,2]
[345420273,1734249184819,-500.75474637,0.00015248,2]
[345420274,1734249184828,-500.84848665,0.00015248,2]
[345420275,1734249184838,-165.17,0.00015258,2]
[345420276,1734249184847,-275.0791497,0.00015258,2]
[345420277,1734249184857,-1056.0,0.00015303,2]
[345420278,1734249184867,-9999.99,0.0001531,2]
[345420279,1734249184876,-150.0,0.00015363,2]
[345420280,1734249184886,-150.0,0.00015364,2]
[345420281,1734249184896,-2811.0,0.00015369,2]
[345420282,1734249184905,-1484.0,0.00015369,2]
[345420283,1734249184915,-483.6820152,0.000154,2]
[345420284,1734249184925,-15904.29383226,0.000154,2]
[345420285,1734249184935,-153.0,0.00015405,2]
[345420286,1734249184945,-153.0,0.00015405,2]
[345420287,1734249184960,-153.0,0.00015405,2]
[345420288,1734249184970,-153.0,0.00015405,2]
[345420289,1734249184980,-153.0,0.00015405,2]
[345420290,1734249184990,-153.0,0.00015405,2]
[345420291,1734249185001,-153.0,0.00015405,2]
[345420292,1734249185012,-153.0,0.00015405,2]
[345420293,1734249185022,-153.0,0.00015405,2]
[345420294,1734249185034,-153.0,0.00015405,2]
[345420295,1734249185044,-153.0,0.00015405,2]
[345420296,1734249185054,-153.0,0.00015405,2]
[345420297,1734249185064,-153.0,0.00015405,2]
[345420298,1734249185075,-153.0,0.00015405,2]
[345420299,1734249185084,-153.0,0.00015405,2]
[345420300,1734249185094,-153.0,0.00015405,2]
[345420301,1734249185103,-153.0,0.00015405,2]
[345420302,1734249185113,-153.0,0.00015405,2]
[345420303,1734249185123,-153.0,0.00015405,2]
[345420304,1734249185132,-153.0,0.00015405,2]
[345420305,1734249185142,-153.0,0.00015405,2]
[345420306,1734249185151,-153.0,0.00015405,2]
[345420307,1734249185161,-153.0,0.00015405,2]
[345420308,1734249185171,-153.0,0.00015405,2]
[345420309,1734249185181,-153.0,0.00015405,2]
[345420310,1734249185191,-153.0,0.00015405,2]
[345420311,1734249185201,-153.0,0.00015405,2]
[345420312,1734249185211,-153.0,0.00015405,2]
[345420313,1734249185221,-674.67,0.00015419,2]
[345420314,1734249185231,-1000.0,0.0001542,2]
[345420315,1734249185240,-166.77,0.00015423,2]
[345420316,1734249185249,-208.0,0.0001543,2]
[345420317,1734249185259,-4821.65,0.000155,2]
[345420318,1734249185276,-794.5756211,0.00015547,2]
[345420319,1734249185287,-994.9413555,0.00015558,2]
[345420320,1734249185297,-6572.1506455,0.00015558,2]
[345420321,1734249185307,-1000.0,0.00015569,2]